Workbook

Sheet דוגמאות מרצה שאלות 1-7
I1: אגרות חוב
F3: שאלה 1
I14: נתונים:
I15: ערך נקוב | J15: 100 | K15: FV
I16: ריבית נקובה | J16: 4% | K16: i
I17: מרווח זמן בין קופונים | J17: 1 | K17: T
I18: מספר שנים | J18: 6 | K18: n
I19: תשואה נדרשת לפדיון | J19: 8% | K19: r
I20: קופון | J20: =(J15*J16)/J17 -> 4 | K20: C
K21: PV=?
I23: תשובה | K23: =PV(J19,J18,J20,J15) -> -81.51 | L23: האגח הונפקה בניכיון
J25: I>R | K25: PV>FV | L25: פרמיה
J26: I=R | K26: PV=FV | L26: פארי
F33: שאלה 2
I43: נתונים:
I44: ערך נקוב | J44: 100 | K44: FV
I45: ריבית נקובה | J45: 11% | K45: i
I46: מרווח זמן בין קופונים | J46: 1 | K46: T
I47: מספר שנים | J47: 2 | K47: n
I48: קופון | J48: =(J44*J45)/J46 -> 11 | K48: C
I49: מחיר הנפקה | J49: -104.34 | K49: pv | L49: הנפקה בפרמיה
K50: r=?
I52: תשובה | K52: =RATE(J47,J48,J49,J44) -> 8.55%
F68: שאלה 3
I85: נתונים אג"ח א: | M85: נתונים אג"ח ב: | Q85: נתונים אג"ח ג:
I86: ערך נקוב | J86: 400 | K86: FV | M86: ערך נקוב | N86: 400 | O86: FV | Q86: ערך נקוב | R86: 400 | S86: FV
I87: ריבית נקובה | J87: 4% | K87: i | M87: ריבית נקובה | N87: 4% | O87: i | Q87: ריבית נקובה | R87: 4% | S87: i
I88: מרווח זמן בין קופונים | J88: 1 | K88: T | M88: מרווח זמן בין קופונים | N88: 1 | O88: T | Q88: מרווח זמן בין קופונים | R88: 1 | S88: T
I89: מספר שנים | J89: 4 | K89: n | M89: מספר שנים | N89: 4 | O89: n | Q89: מספר שנים | R89: 4 | S89: n
I90: קופון | J90: =(J86*J87)/J88 -> 16 | K90: C | M90: קופון | N90: =(N86*N87)/N88 -> 16 | O90: C | Q90: קופון | R90: =R86*R87*R88 -> 16 | S90: C
I91: תשואה נדרשת לפדיון | J91: 2% | K91: r | M91: תשואה נדרשת לפדיון | N91: 4% | O91: r | Q91: תשואה נדרשת לפדיון | R91: 6% | S91: r
K92: pv=? | O92: pv=? | S92: pv=?
I95: א. | K95: =PV(J91,J89,-J90,-J86) -> 430.46 | L95: האג"ח הונפקה בפרמיה
I96: ב. | K96: =PV(N91,N89,-N90,-N86) -> 400.00 | L96: האג"ח הונפקה בפארי
I97: ג. | K97: =PV(R91,R89,-R90,-R86) -> 372.28 | L97: האג"ח הונפקה בניכיון
F111: שאלה 4
I124: נתונים:
I125: ערך נקוב | J125: 1000 | K125: FV
I126: ריבית נקובה | J126: 8% | K126: i | M126: 3
I127: מרווח זמן בין קופונים | J127: 1 | K127: T
I128: מספר שנים | J128: 5 | K128: n | M128: 1
I129: קופון | J129: =(J125*J126)/J127 -> 80 | K129: C
I130: תשואה לפדיון | J130: 11% | K130: r
I133: א. | K133: =-PV(J130,L133,J129,J125) -> 906.93 | L133: =M133-1 -> 4 | M133: 5 | N133: N
I134: ב. | K134: =K133+J129 -> 986.93 | N134: N
I135: ג. | K135: =-PV(J130,L135,J129,J125) -> 972.97 | L135: =M135-L133 -> 1 | M135: 5
I136: ד. | K136: =K135+J129 -> 1052.97
F152: שאלה 5
I163: נתונים:
I164: ערך נקוב | J164: 800 | K164: FV
I165: ריבית נקובה | J165: 8% | K165: i | M165: 24
I166: מרווח זמן בין קופונים | J166: 4.00 | K166: T
I167: מספר שנים | J167: =8*4 -> 32 | K167: n
I168: קופון | J168: =(J165*J164)/J166 -> 16 | K168: C
I169: תשואה לפדיון | J169: 10% | K169: 6% | M169: 4
I170: תשואה רבעונית | J170: =(1+J169)^(1/M169)-1 -> 2.41% | K170: =(1+K169)^(1/M169)-1 -> 1.47%
I172: א. | J172: =-PV(J170,J167,J168,J164) -> ₪ 727.19
I173: ב. | J173: =-PV(K170,L173,J168,J164) -> ₪ 885.67 | L173: =N173-M173 -> 24 | M173: =2*4 -> 8 | N173: 32 | O173: N
I174: נתונים:
I175: תשואה לפדיון
I176: תשואה רבעונית
F183: שאלה 6
I196: נתונים:
I197: ערך נקוב | J197: 800 | K197: FV
I198: ריבית נקובה | J198: 8% | K198: i | M198: 24
I199: מרווח זמן בין קופונים | J199: 4.00 | K199: T
I200: מספר שנים | J200: =8*4 -> 32 | K200: n
I201: קופון | J201: =(J198*J197)/J199 -> 16 | K201: C
I202: תשואה לפדיון | J202: 10% | K202: 6% | M202: 4
I203: תשואה רבעונית | J203: =(1+J202)^(1/M202)-1 -> 2.41% | K203: =(1+K202)^(1/M202)-1 -> 1.47%
I205: א. | J205: =-PV(J203,J200,J201,J197) -> ₪ 727.19
I206: ב. | J206: =-PV(K203,L206,J201,J197) -> ₪ 885.67 | L206: =N206-M206 -> 24 | M206: =2*4 -> 8 | N206: 32 | O206: N
I207: נתונים:
I208: תשואה לפדיון
I209: תשואה רבעונית
I211: ג | J211: =RATE(M206,J201,-J205,J206) -> 4.52%
F231: שאלה 7
I247: נתונים:
I248: ערך נקוב | J248: 100 | K248: FV
I249: ריבית נקובה | J249: 6% | K249: i
I250: מרווח זמן בין קופונים | J250: 1 | K250: T
I251: מספר שנים | J251: 1 | K251: n
I252: קופון | J252: =(J248*J249)/J250 -> 6 | K252: C
I253: תשואה לפדיון | J253: 6% | K253: r
J254: 90 | K254: PV
I256: א. | J256: =J254/J248-1 -> -10.00%
I257: ב. | J257: =RATE(J251,J252,-J254,J248) -> 17.78%

Sheet תרגול עצמי שאלות 8-12
F4: שאלה 8
I14: נתונים:
I15: ערך נקוב | J15: 5000 | K15: FV
I16: ריבית נקובה | J16: 7% | K16: i
I17: מרווח זמן בין קופונים | J17: 2 | K17: T | M17: 8
I18: מספר שנים | J18: =5*2 -> 10 | K18: n
I19: תשואה נדרשת לפדיון | J19: 8.16% | K19: r | M19: 2
I20: קופון | J20: =(J15*J16)/J17 -> 175 | K20: C
I21: תשואה חצי שנתית | J21: =(1+J19)^(1/M19)-1 -> 4.00%
K22: pv=?
I24: תשובה | K24: =-PV(J21,J18,J20,J15) -> 4797.23
F35: שאלה 9
I46: נתונים:
I47: ערך נקוב | J47: 200 | K47: FV
I48: מרווח זמן בין קופונים | J48: 1 | K48: T
I49: מספר שנים | J49: 6 | K49: n
I50: תשואה נדרשת לפדיון | J50: 7.00% | K50: r
I51: ערך נוכחי | J51: -223.21 | K51: pv
K53: C=?
I55: תשובה | K55: =PMT(J50,J49,J51,J47) -> 18.87
K56: =K55/J47 -> 9.43%
F71: שאלה 10
I82: נתונים: | M82: נתונים:
I83: ערך נקוב | J83: 9000 | K83: FV | M83: ערך נקוב | N83: 9000 | O83: FV
I84: ריבית נקובה | J84: 8% | K84: i | M84: ריבית נקובה | N84: 8% | O84: i
I85: מרווח זמן בין קופונים | J85: 1 | K85: T | M85: מרווח זמן בין קופונים | N85: 1 | O85: T
I86: מספר שנים | J86: 6 | K86: n | M86: מספר שנים | N86: 6 | O86: n
I87: תשואה נדרשת לפדיון | J87: 10.00% | K87: r | M87: תשואה נדרשת לפדיון | N87: 6.00% | O87: r
I88: קופון | J88: =(J83*J84)/J85 -> 720 | K88: C | M88: קופון | N88: =(N83*N84)/N85 -> 720 | O88: C
K90: pv=? | O90: pv=?
I92: תשובה | K92: =-PV(J87,J86,J88,J83) -> 8216.05 | L92: ניכיון | M92: תשובה | O92: =-PV(N87,N86,N88,N83) -> 9885.12 | P92: פרמיה
F112: שאלה 11
I122: נתונים:
I123: ערך נקוב | J123: 100 | K123: FV
I124: ריבית נקובה | J124: 5% | K124: i
I125: מרווח זמן בין קופונים | J125: 1 | K125: T
I126: מספר שנים | J126: 4 | K126: n
I127: תשואה נדרשת לפדיון | J127: 4.00% | K127: r
I128: קופון | J128: =(J123*J124)/J125 -> 5 | K128: C
K130: pv=?
I132: תשובה | K132: =-PV(J127,L132,J128,J123) -> 101.89 | L132: =N132-M132 -> 2 | M132: 2 | N132: 4 | O132: N
I133: ב. | K133: =K132+J128 -> 106.89
F157: שאלה 12
I175: נתונים:
I176: ערך נקוב | J176: 100 | K176: FV
I177: ריבית נקובה | J177: 5% | K177: i
I178: מרווח זמן בין קופונים | J178: 1.00 | K178: T
I179: מספר שנים | J179: 5 | K179: n
I180: קופון | J180: =(J177*J176)/J178 -> 5 | K180: C
I181: תשואה לפדיון | J181: 4% | K181: 6%
I184: א. | J184: =-PV(K181,J179,J180,J176) -> ₪ 95.79
I185: ב. | J185: =-PV(J181,L185,J180,J176) -> ₪ 103.63 | L185: =N185-M185 -> 4 | M185: 1 | N185: 5 | O185: N
I186: נתונים:
I187: תשואה לפדיון | J187: =RATE(M185,J180,-J184,J185) -> 13.41%
I190: ג | J190: =RATE(M185,J180,-J184,J185) -> 13.41%

Sheet פתרון תרגילי בית שאלות 13-16
B4: שאלה 13
D13: סעיף א | H13: סעיף ב
D14: נתונים: | H14: נתונים: | I14: 5% | J14: R שנתי
D15: ערך נקוב | E15: 1000 | F15: FV | H15: ערך נקוב | I15: 1000 | J15: FV
D16: ריבית נקובה | E16: 6% | F16: i | H16: ריבית נקובה | I16: 6% | J16: i
D17: מרווח זמן בין קופונים | E17: 4 | F17: T | H17: מרווח זמן בין קופונים | I17: 4 | J17: T
D18: מספר שנים | E18: =10*4 -> 40 | F18: n | H18: מספר שנים | I18: =10*4 -> 40 | J18: n
D19: תשואה נדרשת לפדיון | E19: 1.50% | F19: r | G19: =(1+E19)^4-1 -> 6.14% | H19: תשואה נדרשת לפדיון | I19: =(1+I14)^0.25-1 -> 1.23% | J19: r
D20: קופון | E20: =(E15*E16)/E17 -> 15 | F20: C | H20: קופון | I20: =(I15*I16)/I17 -> 15 | J20: C
D22: תשובה | F22: =-PV(E19,E18,E20,E15) -> 1000.00 | H22: תשובה | J22: =-PV(I19,I18,I20,I15) -> 1085.82
D24: סעיף ג
D25: נתונים: | E25: 17% | F25: R שנתי
D26: ערך נקוב | E26: 1000 | F26: FV
D27: ריבית נקובה | E27: 6% | F27: i
D28: מרווח זמן בין קופונים | E28: 4 | F28: T
D29: מספר שנים | E29: =I29-H29 -> 28 | F29: n | H29: =3*4 -> 12 | I29: 40
D30: תשואה נדרשת לפדיון | E30: =(1+E25)^0.25-1 -> 4.00% | F30: r
D31: קופון | E31: =(E26*E27)/E28 -> 15 | F31: C
D33: תשובה | F33: =-PV(E30,E29,E31,E26) -> 583.05
E38: שאלה 14
H50: נתונים:
H51: ערך נקוב | I51: 100 | J51: FV
H52: מרווח זמן בין קופונים | I52: 1 | J52: T
H53: מספר שנים | I53: 6 | J53: n
H54: תשואה נדרשת לפדיון | I54: 6.00% | J54: r
H55: ערך נוכחי | I55: -110.84 | J55: pv
J57: C=?
H59: תשובה | J59: =PMT(I54,I53,I55,I51) -> 8.20
J60: =J59/I51 -> 8.20%
D66: שאלה 15
F74: סדרה א | J74: סדרה ב
F75: נתונים: | J75: נתונים:
F76: ערך נקוב | G76: 100 | H76: FV | J76: ערך נקוב | K76: 100 | L76: FV
F77: ריבית נקובה | G77: 6% | H77: i | J77: ריבית נקובה | K77: 4% | L77: i
F78: מרווח זמן בין קופונים | G78: 2 | H78: T | J78: מרווח זמן בין קופונים | K78: 1 | L78: T
F79: מספר תקופות | G79: =4*2 -> 8 | H79: n | J79: מספר תקופות | K79: 1 | L79: n
F80: תשואה נדרשת לפדיון | G80: =(1+L83)^0.5-1 -> 7.50% | H80: r | J80: תשואה נדרשת לפדיון | L80: r
F81: קופון | G81: =(G76*G77)/G78 -> 3 | H81: C | J81: קופון | K81: =(K76*K77)/K78 -> 4 | L81: C
K82: =K76*(1-0.1) -> 90 | L82: PV
F83: תשובה | H83: =-PV(G80,G79,G81,G76) -> 73.66 | J83: תשובה | L83: =RATE(K79,K81,-K82,K76) -> 15.56%
H84: ניכיון
E91: שאלה 16
G99: פתרון
G100: נתונים:
G101: ערך נקוב | H101: 200 | I101: FV
G102: ריבית נקובה | H102: 2% | I102: i
G103: מרווח זמן בין קופונים | H103: 1 | I103: T
G104: מספר תקופות | H104: 1 | I104: n
G105: תשואה נדרשת לפדיון | H105: 10.00% | I105: פרמיה
G106: קופון | H106: =(H101*H102)/H103 -> 4 | I106: C
H107: =H101*(1+H105) -> 220 | I107: PV
G108: תשובה | I108: =RATE(H104,H106,-H107,H101) -> -7.27%

Sheet שאלות מבחינות שאלות 17-25
G5: אגרת חוב לשלוש שנים הינה בעלת ערך נקוב של 2,000 ש"ח ומבטיחה קופון (תלוש ריבית) של 5% כל שנה. אם שיעור התשואה לפדיון השנתי הוא 5% ותלוש הריבית הבא משולם בעוד שנה, הרי שמחיר האגרת היום הוא: 1. 1746.1 2. 1976.7 3. 2000.0 4. 1751.3 5. אף אחת מהתשובות האחרות אינה נכונה
E6: שאלה 17
G7: נתונים:
G8: ערך נקוב | H8: 2000 | I8: FV
G9: ריבית נקובה | H9: 5% | I9: i
G10: מרווח זמן בין קופונים | H10: 1 | I10: T
G11: קופון | H11: =(H8*H9)/H10 -> 100 | I11: C | J11: שנתי
G12: מספר תקופות | H12: 3 | I12: n | J12: שנים
G13: תשואה נדרשת לפדיון | H13: 5% | I13: r | J13: שנתי
I15: PV=?
G17: תשובה | I17: =-PV(H13,H12,H11,H8) -> ₪ 2,000.00
G26: אגרת חוב בעלת ערך נקוב של 2000 הונפקה היום. זמן הפרעון של האגרת הינו 6 שנים והיא מחלקת קופון אחת לרבעון בריבית שנתית נקובה של 6% מהו הערך הנוכחי של האגרת אם ידוע כי שיעור התשואה לפדיון השנתי על אג"ח ברמת סיכון דומה הוא 8%? 1. 2000 2. 1831.4 3. 2003.7 4. 1610.9 5. נמוך מ- 1500
E27: שאלה 18
G28: נתונים:
G29: ערך נקוב | H29: 2000 | I29: FV
G30: ריבית נקובה | H30: 6% | I30: i
G31: מרווח זמן בין קופונים | H31: 4 | I31: T
G32: קופון | H32: =(H29*H30)/H31 -> 30 | I32: C | J32: רבעוני
G33: מספר תקופות | H33: =6*4 -> 24 | I33: n | J33: רבעונים
G34: תשואה נדרשת לפדיון | H34: =(1+K34)^(1/H31)-1 -> 1.94% | I34: r | J34: רבעוני | K34: 8.00%
I36: PV=?
G38: תשובה | I38: =-PV(H34,H33,H32,H29) -> $1,831.46
G48: אגרת חוב בעלת ערך נקוב של 200 ש"ח, זמן פירעון של 10 שנים וקופון (תלוש ריבית) של 10%, נסחרת היום בבורסה בשיעור תשואה לפדיון של 11%. הקופון הבא ישולם בעוד שנה מהיום. מהו מחיר השוק של אגרת החוב? 1. 200.0 2. 196.2 3. מעל 200 4. 192.6 5. 188.2
E49: שאלה 19
G50: נתונים:
G51: ערך נקוב | H51: 200 | I51: FV
G52: ריבית נקובה | H52: 10% | I52: i
G53: מרווח זמן בין קופונים | H53: =1/1 -> 1 | I53: T
G54: קופון | H54: =(H51*H52)/H53 -> 20 | I54: C | J54: שנתי
G55: מספר תקופות | H55: 10 | I55: n | J55: שנים
G56: תשואה נדרשת לפדיון | H56: 11% | I56: r | J56: שנתי
I58: PV=?
G60: תשובה | I60: =-PV(H56,H55,H54,H51) -> ₪ 188.22
G70: אגרת חוב בעלת ערך נקוב של 2000 הונפקה היום. זמן הפרעון של האגרת הינו 5 שנים והיא מחלקת קופון אחת לחצי שנה. ידוע כי הערך הנוכחי של האגרת עומד על 1947.4 וכי שיעור התשואה לפדיון השנתי על אג"ח ברמת סיכון דומה הוא 8%. מהי שיעור הריבית השנתית הנקובה על הקופון? 1. 3.6% 2. 3.92% 3. 7.2% 4. 8% 5. לא ניתן לדעת
E71: שאלה 20
G72: נתונים:
G73: ערך נקוב | H73: 2000 | I73: FV
G74: ריבית נקובה | H74: =I83*2 -> 7.20% | I74: i
G75: מרווח זמן בין קופונים | H75: 2 | I75: T
G76: קופון | H76: =(H73*H74)/H75 -> 72.00068438 | I76: C | J76: שנתי | L76: שיעור תשואה לפדיון שנתי | M76: 8%
G77: מספר תקופות | H77: =5*2 -> 10 | I77: n | J77: שנים
G78: תשואה נדרשת לפדיון | H78: =(1+M76)^(1/H75)-1 -> 4% | I78: r | J78: שנתי
H79: 1947.4 | I79: PV
G82: תשובה | I82: =PMT(H78,H77,-H79,H73) -> ₪ 72.00 | J82: קופון חצי שנתי
I83: =I82/H73 -> 3.60%
G91: חברה הנפיקה אגרת חוב בעלת ערך נקוב של 400,000 ש"ח, המשלמת קופון שנתי בשיעור של 15% לתקופה של 20 שנה. ידוע כי ביום ההנפקה עמד שיעור התשואה לפדיון של איגרת החוב על 10%. מה תהיה התשואה השנתית שהשיג משקיע שרכש את איגרת החוב ביום ההנפקה ומכר אותה לאחר שנה (רגע לאחר ששולם לך הקופון), בהנחה ששיעור התשואה לפדיון של איגרת החוב ביום זה הנו 15% (יש לעגל את התשובה למספר השלם הקרוב)? 1. תשואה שלילית בשיעור של כ 19% 2. תשואה שלילית בשיעור של כ 30% 3. תשואה שלילית בשיעור של כ 42% 4. תשואה חיובית בשיעור של כ 42% 5. תשואה חיובית בשיעור של כ 24%
E92: שאלה 21
G93: נתונים למועד ההנפקה: | L93: נתונים לאחר שנה:
G94: ערך נקוב | H94: ₪400,000 | I94: FV | L94: ערך נקוב | M94: ₪400,000 | N94: FV
G95: ריבית נקובה | H95: 15% | I95: i | L95: ריבית נקובה | M95: 15% | N95: i
G96: מרווח זמן בין קופונים | H96: 1.00 | I96: T | L96: מרווח זמן בין קופונים | M96: =1/1 -> 1.00 | N96: T
G97: קופון | H97: =(H94*H95)/H96 -> ₪60,000 | I97: C | L97: קופון | M97: =M94*M96*M95 -> ₪60,000 | N97: C
G98: מספר תקופות כולל | H98: 20 | I98: n | L98: מספר תקופות כולל | M98: 20 | N98: n
G99: מספר התקופות שעברו | I99: k | L99: מספר התקופות שעברו | M99: 1 | N99: k
G100: תשואה לפדיון | H100: 10% | I100: r | L100: תשואה לפדיון | M100: 15% | N100: r
G102: ערך במועד ההנפקה | I102: =PV(H100,H98,-H97,-H94) -> ₪570,271 | J102: PV(0) | L102: ערך לאחר שנה | N102: =PV(M100,(M98-M99),-M97,-M94) -> ₪400,000 | O102: PV(1)
G104: ריכוז נתונים לטובת חישוב התשואה שעשה המשקיע:
G105: תשלום ברכישה | H105: =I102 -> ₪570,271 | I105: PV(0)
G106: מחיר מכירה | H106: =N102 -> ₪400,000 | I106: PV(1)
G107: קבלת קופון | H107: =M97 -> ₪60,000 | I107: PV(1)
G109: תשואה שעשה המשקיע: | I109: =RATE(1,H107,-H105,H106) -> -19.34%
G115: חברה הנפיקה איגרת חוב בעלת ערך נקוב של 100,000 ש"ח, המשלמת קופון שנתי בשיעור של 8% לתקופה של 6 שנים. ידוע כי ביום ההנפקה עמד שיעור התשואה השנתי הנדרש לפדיון על 10%. מה תהיה התשואה השנתית שהשיג משקיע שרכש את איגרת החוב ביום ההנפקה ומכר אותה לאחר שנה רגע לפני ששולם הקופון, בהנחה ששיעור התשואה לפדיון של איגרת החוב ביום זה הנו 7%? 1 .תשואה שלילית בשיעור של 12.3% 2 .תשואה חיובית בשיעור של 22.79% 3 .תשואה חיובית בשיעור של 14.30% 4 .תשואה שלילית בשיעור של 18.56% 5 .תשואה חיובית בשיעור של 31.55%
E117: שאלה 22
G118: בעת הרכישה | L118: לאחר שנה
G119: ערך נקוב | H119: ₪100,000 | I119: FV | L119: ערך נקוב | M119: ₪100,000 | N119: FV
G120: ריבית נקובה | H120: 8% | I120: i | L120: ריבית נקובה | M120: 8% | N120: i
G121: מרווח זמן בין קופונים | H121: 1.00 | I121: T | L121: מרווח זמן בין קופונים | M121: 1.00 | N121: T
G122: קופון | H122: =(H119*H120)/H121 -> ₪8,000 | I122: C | L122: קופון | M122: =M119*M120*M121 -> ₪8,000 | N122: C
G123: מספר תקופות כולל | H123: 6 | I123: n | L123: מספר תקופות כולל | M123: 5 | N123: n
G124: מספר התקופות שעברו | I124: k | L124: מספר התקופות שעברו | M124: 1 | N124: k
G125: תשואה לפדיון | H125: 10% | I125: r | L125: תשואה לפדיון | M125: 7% | N125: r
H127: =-PV(H125,H123,H122,H119) -> ₪ 91,289.48 | I127: PV | M127: =-PV(M125,M123,M122,M119) -> ₪104,100 | N127: PV
H128: =PV(H125,H123,-H122,-H119) -> ₪ 91,289.48 | M128: =-PV(M125,M123,-M122,-M119) -> -104,100.20
G129: תשואת האחזקה, רגע לפני תשלום הקופון:
G130: מחיר קניה | H130: =H127 -> ₪91,289
G131: רגע לפני הקופון | H131: =M122 -> ₪8,000 | J131: מתווסף למחיר האג"ח שכן מכרנו רגע לפני חלוקת הקופון
G132: מחיר מכירה | H132: =M127 -> ₪104,100
G134: סה"כ תשואת אחזקה | H134: =RATE(1,H131,-H130,H132) -> 22.796%
G140: חברה מעוניינת לגייס הון לצורך הגדלת פעילות ייצור הרחפנים שלה. החברה מעוניינת לגייס סך של 5,000,000 ש"ח בהנפקת אג"ח לציבור. ידועים הנתונים הבאים: ריבית השוק השנתית עבור אגרות החוב של החברה עומדת על 8.24% האג"ח שתונפק תשלם קופון חצי שנתי בגובה 5,000 ש"ח ערכה הנקוב של האגרת יפרע בתשלום אחד, בתום 4 שנים מיום הנפקתה נדרש: מה צריך להיות ערכה הנקוב של האג"ח על מנת שהחברה תעמוד ביעד הגיוס?
E141: שאלה 23
G142: נתונים למועד ההנפקה:
G143: ערך נקוב | H143: ? | I143: FV
G144: ריבית נקובה | H144: ? | I144: i
G145: מרווח זמן בין קופונים | H145: 2.00 | I145: T
G146: קופון | H146: ₪5,000.00 | I146: C | J146: חצי שנתי
G147: מספר תקופות כולל | H147: =4*2 -> 8 | I147: n | J147: בחצאי שנים
G148: תשואה נדרשת לפדיון | H148: =(1+M148)^(1/2)-1 -> 4.04% | I148: r | J148: חצי שנתי | L148: שיעור תשואה לפדיון שנתי | M148: 8.24%
G149: ערך במועד ההנפקה | H149: ₪5,000,000.00 | I149: PV(0)
G151: הערך הנקוב על האג"ח | H151: =FV(H148,H147,H146,-H149) -> ₪6,816,978.53 | I151: FV(8)
G158: דור רכש היום איגרת חוב לתקופה של 20 שנה שערכה הנקוב הוא 300 ש"ח הנושאת ריבית שנתית נקובה של 8%. האיגרת מחלקת קופון 4 פעמים בשנה והיא צפויה להניב תשואה לפדיון של 12.55% בשנה. לאחר 15 שנים דור החליט למכור את האיגרת. חברו היקר, נועם, הציע לדור לקנות ממנו את האיגרת במחיר של 200 ש"ח. מהו הרווח/הפסד של דור מהמכירה? 1 .הפסד של כ-55 ש"ח 2 .רווח של כ- 100 ש"ח 3 .הפסד של כ- 100 ש"ח 4 .הפסד של כ- 200 ש"ח 5 .רווח של כ- 150 ש"ח
E161: שאלה 24
G162: נתונים למועד ההנפקה: | K162: נתונים לאחר 15 שנה:
G163: FV | H163: 300 | K163: FV | L163: =H163 -> 300
G164: i | H164: 8% | K164: i | L164: 8%
G165: T | H165: 4 | K165: T | L165: 4
G166: C | H166: =(H163*H164)/H165 -> 6 | K166: C | L166: =(L163*L164)/L165 -> 6
G167: n | H167: =20*4 -> 80 | I167: רבעונים | K167: n | L167: 80 | M167: רבעונים
G168: k | H168: 0 | K168: k | L168: =15*4 -> 60 | M168: רבעונים
G169: r(real) | H169: =(1+12.55%)^(1/4)-1 -> 3.000% | I169: רבעוני | K169: r(real) | L169: =ROUND((1+12.55%)^(1/4)-1,5) -> 3.000% | M169: רבעוני. זהה
G170: PV(0) | H170: =PV(H169,(H167-H168),-H166,-H163) -> 209.41 | K170: PV(60) | L170: =PV(L169,(L167-L168),-L166,-L163) -> 255.37
G172: אם יסכים למכור ב- 200 הוא יפסיד 55.37 ש"ח
G181: נתונה אגרת חוב הנושאת ריבית שנתית בשיעור של 8% ומחלקת קופון פעמיים בשנה. מה צריכה להיות התשואה השנתית הנדרשת לפדיון על מנת שאיגרת החוב תיסחר בפארי? (בערכה הנקוב) 1. 8.16% 2. 8% 3. 7.56% 4. לא ניתן לדעת מאחר וערכה הנקוב של האיגרת אינו נתון 5. לא ניתן לדעת מאחר ואין נתונים לגבי מועד פקיעתה של איגרת החוב
E182: שאלה 25
G183: i | H183: 8%
G184: T | H184: 2
G185: r | H185: =H183/H184 -> 0.04 | I185: חצי שנתי | J185: כדי שתסחר בפארי נדרש שיהיה זהה ל i*T
G186: r (year) | H186: =(1+H185)^2-1 -> 8.16%
G189: שאלה 10
G191: חברת "חורפלי" הנפיקה את סדרת האג"ח הבאה: תאריך הנפקה ערך נקוב ריבית נקובה אורך חיי האגרת מחיר האגרת הערות 31.8.2017 300 ? 4 שנים ? אג"ח אפס ידוע ששיעור התשואה לפדיון השנתי על אגרות חוב ברמת סיכון דומה עומד על 9% חשב את מחירה של האיגרת בתאריך ה-31.12.2018
G193: פתרון:
G194: ראשית נחשב את מחיר האיגרת ביום הנפקתה:
H195: 300 | I195: FV
H196: 9.00% | I196: r(year)
H197: 4 | I197: n
H198: =PV(H196,H197,,-H195) -> ₪212.53 | I198: PV
G201: וכעת נזיז את התוצאה שקיבלנו, קדימה מיום 31.8.2017 ליום 31.12.2018 (כנדרש)
H203: =H198 -> ₪212.53 | I203: PV(31/8/2017)
H204: ? | I204: PV(31/12/2018)
H205: 16 | I205: n | J205: מספר החודשים שנדרש להזיז קדימה
H206: =M209 -> 0.721% | I206: r (month) | L206: חישוב עזר לריבית
M207: 9% | N207: r(year) | O207: נתון
G208: תשובה | H208: =FV(H206,H205,,-H203) -> ₪238.41 | I208: PV(31/12/2018) | M208: 12 | N208: n | O208: מספר החודשים בשנה
M209: =(1+M207)^(1/M208)-1 -> 0.721% | N209: r (month)
G212: פתרון חלופי:
G213: נחשב את מחיר האגרת לפי מספר התקופות שנותרו על לפירעונה
H214: 300 | I214: FV
H215: =4*12-16 -> 32 | I215: n | J215: מספר התקופות שנותרו מ- 31.12.2018 (מועד החישוב) עד לפירעון האגר"ח בתאריך 31.8.2022)
H216: =M219 -> 0.72% | I216: r (month) | L216: חישוב עזר לריבית
H217: ? | I217: PV | M217: 9% | N217: r(year) | O217: נתון
M218: 12 | N218: n | O218: מספר החודשים בשנה
M219: =(1+M217)^(1/M218)-1 -> 0.721% | N219: r (month)
G220: תשובה | H220: =PV(H216,H215,,-H214) -> ₪238.41 | I220: PV(31/12/2018)
